Workbook

Sheet 我省垃圾焚烧发电企业2024年上半年垃圾处理量及相关电量情况表
A1: 附件
A2: 我省垃圾焚烧发电企业2024年上半年垃圾处理量及相关电量情况表
A3: 统计期间：2024年1月1日至2024年6月30日
A4: 地区 | B4: 企业(项目）名称 | C4: 入厂垃圾量 | D4: 垃圾处理量折算的上网电量 | E4: 备注
C5: 吨 | D5: 千瓦时
A6: 广州 | B6: 永兴环保广州白云李坑生活垃圾焚烧发电二厂 | C6: 340821.28 | D6: =C6*280 -> 95429958
A7: 广州 | B7: 广州市第三资源热力电厂 | C7: 443238.93 | D7: =C7*280 -> 124106900
A8: 广州 | B8: 福山循环经济产业园生活垃圾应急综合处理项目 | C8: 637751.45 | D8: =C8*280 -> 178570406
A9: 广州 | B9: 环投环保能源广州南沙第四资源热力电厂50MW发电工程 | C9: 155111.03 | D9: =C9*280 -> 43431088
A10: 广州 | B10: 广州市第四资源热力电厂二期工程及配套设施 | C10: 480161.11 | D10: =C10*280 -> 134445111
A11: 广州 | B11: 广州市第五资源热力电厂（一期焚烧项目） | C11: 150496.44 | D11: =C11*280 -> 42139003
A12: 广州 | B12: 广州市第五资源热力电厂（二期焚烧项目） | C12: 516848.27 | D12: =C12*280 -> 144717516
A13: 广州 | B13: 环投环保能源广州增城第六资源热力电厂50MW发电工程 | C13: 130242.93 | D13: =C13*280 -> 36468020
A14: 广州 | B14: 广州市第六资源热力电厂（二期焚烧项目） | C14: 539461.14 | D14: =C14*280 -> 151049119
A15: 广州 | B15: 从化固体废弃物综合处理中心（广州市第七资源热力电厂） | C15: 87806.18 | D15: =C15*280 -> 24585730
A16: 广州 | B16: 广州市第七资源热力电厂（二期焚烧项目） | C16: 357034.19 | D16: =C16*280 -> 99969573
A17: 深圳 | B17: 深圳市宝安区老虎坑垃圾焚烧发电厂二期工程 | C17: 485652.43 | D17: =C17*280 -> 135982680
A18: 深圳 | B18: 深圳市宝安区老虎坑垃圾焚烧发电厂三期工程 | C18: 968880.71 | D18: =C18*280 -> 271286599
A19: 深圳 | B19: 深圳市妈湾城市能源生态园电厂 | C19: 291088.24 | D19: =C19*280 -> 81504707
A20: 深圳 | B20: 深圳市东部环保电厂 | C20: 1019074.30 | D20: =C20*280 -> 285340804
A21: 深圳 | B21: 深圳市天楹环保能源有限公司（平湖垃圾焚烧发电厂二期） | C21: 323511.58 | D21: =C21*280 -> 90583242
A22: 珠海 | B22: 珠海信环环保有限公司珠海斗门区珠海市环保生物质热电工程30MW发电工程 | C22: 260352.52 | D22: =C22*280 -> 72898706
A23: 珠海 | B23: 珠海康恒环保有限公司（珠海市环保生物质热电工程二期项目) | C23: 397569.04 | D23: =C23*280 -> 111319331
A24: 汕头 | B24: 汕头市澄海洁源垃圾发电厂项目 | C24: 59528.89 | D24: =C24*280 -> 16668089
A25: 汕头 | B25: 汕头市澄海洁源垃圾发电厂项目二期扩建工程 | C25: 71434.67 | D25: =C25*280 -> 20001708
A26: 汕头 | B26: 汕头市澄海洁源垃圾发电厂有限公司（三期） | C26: 189642.87 | D26: =C26*280 -> 53100004
A27: 汕头 | B27: 汕头市潮南区生活垃圾焚烧发电厂（一期） | C27: 153592.31 | D27: =C27*280 -> 43005847
A28: 汕头 | B28: 中节能（汕头潮南）环保能源有限公司（扩建） | C28: 114582.45 | D28: =C28*280 -> 32083086
A29: 汕头 | B29: 汕头市绿色动力再生能源有限公司（汕头市潮阳区生活垃圾焚烧发电厂BOT项目) | C29: 212927.25 | D29: =C29*280 -> 59619630
A30: 汕头 | B30: 汕头市绿色动力再生能源有限公司(汕头市潮阳区生活垃圾焚烧发电厂BOT项目二期扩建工程） | C30: 152090.89 | D30: =C30*280 -> 42585450
A31: 汕头 | B31: 汕头市恒建科创生物质发电有限公司（汕头市雷打石环保电厂） | C31: 79605.75 | D31: =C31*280 -> 22289610
A32: 汕头 | B32: 汕头市恒建科为生物质发电有限公司 | C32: 317306.89 | D32: =C32*280 -> 88845929
A33: 佛山 | B33: 瀚蓝绿电固废处理（佛山）有限公司佛山南海区佛山市南海垃圾焚烧发电一厂改扩建项目30MW发电工程 | C33: 332212.04 | D33: =C33*280 -> 93019371
A34: 佛山 | B34: 绿电再生能源公司佛山南海垃圾焚烧二厂30MW生物质发电工程 | C34: 341580.13 | D34: =C34*280 -> 95642436
A35: 佛山 | B35: 瀚蓝绿电固废处理（佛山）有限公司南海生活垃圾焚烧发电厂提标扩能工程项目 | C35: 374837.07 | D35: =C35*280 -> 104954380
A36: 佛山 | B36: 广东顺控环境投资有限公司（顺德区顺控环投热电项目） | C36: 701903.94 | D36: =C36*280 -> 196533103
A37: 佛山 | B37: 佛山市绿能环保有限公司 | C37: 521718.65 | D37: =C37*280 -> 146081222
A38: 梅州 | B38: 梅州市三峰环保能源有限公司（梅州市环保能源生活垃圾焚烧发电项目） | C38: 208253.11 | D38: =C38*280 -> 58310871
A39: 梅州 | B39: 光大环保能源（五华）有限公司（五华县循环经济产业园生活垃圾焚烧发电工程项目） | C39: 145470.74 | D39: =C39*280 -> 40731807
A40: 梅州 | B40: 兴宁康恒环保能源有限公司（兴宁市静脉产业园项目一期工程） | C40: 153828.75 | D40: =C40*280 -> 43072050
A41: 惠州 | B41: 惠州绿色动力环保有限公司（绿色动力环保惠州惠阳榄子垅垃圾综合处理项目生活垃圾焚烧24MW发电工程） | C41: 109451.04 | D41: =C41*280 -> 30646291
A42: 惠州 | B42: 惠州绿色动力再生能源有限公司(惠阳环境园生活垃圾焚烧二期PPP项目) | C42: 211695.66 | D42: =C42*280 -> 59274785
A43: 惠州 | B43: 惠州绿色动力再生能源有限公司(惠阳环境园生活垃圾焚烧二期项目二阶段) | C43: 238157.61 | D43: =C43*280 -> 66684131
A44: 惠州 | B44: 光大环保能源（惠东）有限公司惠州惠东惠东生活垃圾焚烧发电项目15MW发电工程 | C44: 116501.13 | D44: =C44*280 -> 32620316
A45: 惠州 | B45: 光大环保能源（惠东）有限公司(惠东生活垃圾焚烧发电项目扩容工程) | C45: 116501.13 | D45: =C45*280 -> 32620316
A46: 惠州 | B46: 惠州广惠能源有限公司（惠州市区垃圾焚烧发电项目—迁建） | C46: 278960.94 | D46: =C46*280 -> 78109063
A47: 惠州 | B47: 光大环保能源（博罗）有限公司（博罗县生活垃圾焚烧发电厂项目) | C47: 128744.92 | D47: =C47*280 -> 36048578
A48: 惠州 | B48: 光大环保能源（博罗）有限公司(博罗县生活垃圾焚烧发电厂项目二期工程项目) | C48: 26378.76 | D48: =C48*280 -> 7386053
A49: 惠州 | B49: 光大环保能源（博罗）有限公司(博罗县生活垃圾焚烧发电厂扩容及配套工程暨餐厨垃圾协同处理项目) | C49: 161031.96 | D49: =C49*280 -> 45088949
A50: 惠州 | B50: 光大环保能源（龙门）有限公司（龙门县城乡生活垃圾无缝对接一体化处理项目—资源热力电厂） | C50: 74076.33 | D50: =C50*280 -> 20741372
A51: 惠州 | B51: 惠州仲恺粤丰环保电力有限公司 | C51: 155875.77 | D51: =C51*280 -> 43645216
A52: 汕尾 | B52: 汕尾市生活垃圾无害化处理中心焚烧发电厂（首期工程项目） | C52: 96052.44 | D52: =C52*280 -> 26894683
A53: 汕尾 | B53: 汕尾市生活垃圾无害化处理中心焚烧发电厂（二期工程项目） | C53: 239798.41 | D53: =C53*280 -> 67143555
A54: 汕尾 | B54: 陆丰粤丰环保电力有限公司 | C54: 175952.04 | D54: =C54*280 -> 49266571
A55: 东莞 | B55: 东实东莞麻涌垃圾处理厂一期18MW发电工程 | C55: 210216.22 | D55: =C55*280 -> 58860542
A56: 东莞 | B56: 东实新能源东莞麻涌垃圾处理厂二期工程18MW发电工程 | C56: 105108.10 | D56: =C56*280 -> 29430268
A57: 东莞 | B57: 东莞市横沥环保热电厂一期技改增容工程 | C57: 351518.38 | D57: =C57*280 -> 98425146
A58: 东莞 | B58: 科维环保电力东莞横沥垃圾焚烧二期30MW生物质发电工程 | C58: 340614.13 | D58: =C58*280 -> 95371956
A59: 东莞 | B59: 东莞市科伟环保电力有限公司东莞横沥镇东莞市横沥环保热电厂一期技改再增容工程50MW发电工程 | C59: 354227.93 | D59: =C59*280 -> 99183820
A60: 东莞 | B60: 中科环保东莞垃圾处理厂技改增容工程生活垃圾焚烧（炉排炉）42MW生物质发电工程 | C60: 357020.41 | D60: =C60*280 -> 99965715
A61: 东莞 | B61: 东莞粤丰环保电力有限公司东莞南城街道办事处东莞市市区环保热电厂增加垃圾处理生产线及建设环保教育展示中心工程36MW发电工程 | C61: 281550.58 | D61: =C61*280 -> 78834162
A62: 东莞 | B62: 东莞市新东元环保投资有限公司（东莞市海心沙资源综合利用中心环保热电厂项目） | C62: 469074.41 | D62: =C62*280 -> 131340835
A63: 中山 | B63: 中山市北部公用环保能源有限公司（一二期） | C63: 130314.44 | D63: =C63*280 -> 36488043
A64: 中山 | B64: 中山市北部公用环保能源有限公司（三期） | C64: 261895.76 | D64: =C64*280 -> 73330813
A65: 中山 | B65: 中山市长青环保热能有限公司 | C65: 229722.88 | D65: =C65*280 -> 64322406
A66: 中山 | B66: 中山市广业龙澄环保有限公司（一期） | C66: 213984.58 | D66: =C66*280 -> 59915682
A67: 中山 | B67: 中山市广业龙澄环保有限公司（二期） | C67: 359665.40 | D67: =C67*280 -> 100706312
A68: 湛江 | B68: 湛江市粤丰环保电力有限公司 | C68: 353799.54 | D68: =C68*280 -> 99063871
A69: 湛江 | B69: 廉江市绿色东方新能源有限公司 | C69: 159711.98 | D69: =C69*280 -> 44719354
A70: 湛江 | B70: 湛江市朗坤环保能源有限公司 | C70: 218629.25 | D70: =C70*280 -> 61216190
A71: 湛江 | B71: 广环投清新环保能源有限公司 | C71: 204650.92 | D71: =C71*280 -> 57302258
A72: 湛江 | B72: 徐闻粤丰环保电力有限公司 | C72: 176080.57 | D72: =C72*280 -> 49302560
A73: 茂名 | B73: 茂名永诚环保资源开发有限公司 | C73: 158426.13 | D73: =C73*280 -> 44359316
A74: 茂名 | B74: 茂名粤丰环保电力有限公司 | C74: 323121.63 | D74: =C74*280 -> 90474056
A75: 茂名 | B75: 化州深能环保有限公司 | C75: 131749.56 | D75: =C75*280 -> 36889877
A76: 茂名 | B76: 信宜粤丰环保电力有限公司 | C76: 235795.86 | D76: =C76*280 -> 66022841
A77: 茂名 | B77: 朗坤环保能源（茂名）有限公司 | C77: 194644.90 | D77: =C77*280 -> 54500572
A78: 潮州 | B78: 潮州深能环保有限公司（深能环保潮州潮安垃圾焚烧发电厂30MW发电工程） | C78: 237998.14 | D78: =C78*280 -> 66639479
A79: 潮州 | B79: 潮州市湘桥深能环保有限公司（潮州市市区环保发电厂项目一期） | C79: 216878.37 | D79: =C79*280 -> 60725944
A80: 潮州 | B80: 瀚蓝（饶平）固废处理有限公司（饶平县宝斗石生活垃圾填埋场升级改造及综合处理资源化利用工程） | C80: 153916.08 | D80: =C80*280 -> 43096502
A81: 江门 | B81: 瀚蓝（开平）固废处理有限公司（开平市固废综合处理中心一期一阶段PPP项目） | C81: 157994.72 | D81: =C81*280 -> 44238522
A82: 肇庆 | B82: 光大广环投环保能源（肇庆）有限公司（肇庆市环保能源发电项目） | C82: 354092.78 | D82: =C82*280 -> 99145978
A83: 肇庆 | B83: 肇庆市博能再生资源发电有限公司 | C83: 223401.20 | D83: =C83*280 -> 62552336
A84: 揭阳 | B84: 普宁市广业环保能源有限公司（普宁市生活垃圾焚烧发电厂项目） | C84: 172123.31 | D84: =C84*280 -> 48194527
A85: 揭阳 | B85: 欧晟绿色燃料（揭阳）有限公司（揭阳市绿源垃圾综合处理与资源利用厂项目） | C85: 173141.245 | D85: =C85*280 -> 48479549
A86: 揭阳 | B86: 普宁市广业粤能环保能源有限公司（普宁市生活垃圾环保处理中心二期项目） | C86: 222267.42 | D86: =C86*280 -> 62234878
A87: 韶关 | B87: 韶关粤丰环保电力有限公司 | C87: 191327.46 | D87: =C87*280 -> 53571689
A88: 韶关 | B88: 光大环保能源（乐昌）有限公司 | C88: 59092.48 | D88: =C88*280 -> 16545894
A89: 清远 | B89: 清远市中田新能源有限公司 | C89: 499506.91 | D89: =C89*280 -> 139861935
A90: 阳江 | B90: 阳江康恒环保有限公司 | C90: 262054.07 | D90: =C90*280 -> 73375140
A91: 河源 | B91: 东源深能环保有限公司 | C91: 2526.42 | D91: =C91*280 -> 707398
A92: 备注：1.垃圾焚烧发电企业核定的垃圾处理量与上网电量应在同一期间，垃圾处理量折算的上网电量执行垃圾发电标杆电价，其余上网电量执行我省燃煤机组标杆上网电价（基准价）。 2.当以垃圾处理量折算的上网电量低于实际上网电量的50%时，视为常规发电项目，不得享受垃圾发电价格补贴；当折算上网电量高于实际上网电量的50%且低于实际上网电量时，以折算的上网电量作为垃圾发电上网电量；当折算上网电量高于实际上网电量时，以实际上网电量作为垃圾发电上网电量。
